Cogmind - Beta 17 @@@ ROGUE MODE // 2026.08.05 @ 20:31:57 Player: 4R-ZE3 Result: Self-destructed Performance ------------- Evolutions (0) 0 Regions Visited (4) 800 Robots Destroyed (34) 170 Value Destroyed (934) 934 Prototype IDs (7) 140 Alien Tech Used (0) 0 Bonus (380) 380 TOTAL SCORE: 2424 Bonus ------- Follower Combat Kills 80 Registered with UFD 300 Cogmind --------- Core Integrity 34/250 Matter 300/300 Energy 200/200 System Corruption 0% Temperature Cool (0) Movement Treading (160) Location -7/Scraptown Parts ------- > --- POWER (1) -------- Subdweller Power Source > --- PROPULSION (2) --- Light Treads Light Treads > --- UTILITY (2) ------ Improved Heat Sink Large Storage Unit > --- WEAPON (2) ------- Subdweller Machine Gun Subdweller Machine Gun > --- INVENTORY (15) --- Titanium Leg VSS Leg Improved Titanium Leg Cargo Legs Experimental Terrain Scanner Medium Armor Plating Hacking Suite System Shield Subdweller Laser Subdweller Laser Subdweller Laser Subdweller Machine Gun Grenade Launcher Mining Claw Peak State ------------ > --- POWER ------------ Subdweller Power Source > --- PROPULSION ------- Light Treads Light Treads > --- UTILITY ---------- Improved Heat Sink Large Storage Unit > --- WEAPON ----------- Subdweller Machine Gun Subdweller Machine Gun > --- INVENTORY -------- Titanium Leg VSS Leg Improved Titanium Leg Cargo Legs Experimental Terrain Scanner Medium Armor Plating Hacking Suite System Shield Subdweller Laser Subdweller Laser Subdweller Laser Subdweller Machine Gun Grenade Launcher Mining Claw [Rating: 17] Favorites ----------- Power Subdweller Power Source Engine Subdweller Power Source Power Core Light Nuclear Core Propulsion Light Treads Treads Light Treads Utility Large Storage Unit Device Improved Heat Sink Storage Large Storage Unit Processor Targeting Computer Protection Medium Armor Plating Weapon Subdweller Machine Gun Energy Gun Subdweller Laser Ballistic Gun Subdweller Machine Gun Launcher Grenade Launcher Slashing Weapon Mining Claw Build | -11 -10 -10 -7 -7 ------- Run | Yrd Mat Sub Rec Scr Slots Evolved . | . . . . . Power . | . . . . . Propulsion . | . . . . . Utility . | . . . . . Weapon . | . . . . . Parts Attached 31 | 6 7 17 1 . Power 6 | 1 1 4 . . Engine 5 | 1 . 4 . . Core 1 | . 1 . . . Reactor . | . . . . . Propulsion 7 | 2 1 3 1 . Treads 7 | 2 1 3 1 . Leg . | . . . . . Wheel . | . . . . . Hover . | . . . . . Flight . | . . . . . Utility 7 | 1 3 3 . . Device 1 | . . 1 . . Storage 2 | 1 1 . . . Processor 1 | . 1 . . . Hackware . | . . . . . Protection 3 | . 1 2 . . Artifact . | . . . . . Weapon 11 | 2 2 7 . . Energy Gun 1 | . . 1 . . Energy Cannon . | . . . . . Ballistic Gun 8 | 2 2 4 . . Ballistic Cannon . | . . . . . Launcher 1 | . . 1 . . Special Weapon . | . . . . . Impact Weapon . | . . . . . Slashing Weapon 1 | . . 1 . . Piercing Weapon . | . . . . . Special Melee Weapon . | . . . . . Unidentified Prototypes . | . . . . . Parts Lost . | . . . . . Power . | . . . . . Propulsion . | . . . . . Utility . | . . . . . Weapon . | . . . . . Highest Loss Streak . | . . . . . To Critical Strikes . | . . . . . Average Backups 13 | . 9 14 14 13 Power . | . 1 1 . . Propulsion 2 | . 1 2 3 4 Utility 3 | . 3 3 2 3 Weapon 6 | . 2 6 7 6 Tool/Special . | . . . . . Unused Backups 17 | . 1 3 . 13 Power 1 | . 1 . . . Propulsion 4 | . . . . 4 Utility 4 | . . . . 4 Weapon 8 | . . 3 . 5 Tool/Special . | . . . . . Average Slot Usage (%) 99 | . 99 99 100 100 Engine 8 | . 3 5 14 14 Core 5 | . 10 8 . . Treads 28 | . 28 28 28 28 Device 6 | . . 2 14 14 Storage 14 | . 14 14 14 14 Processor 3 | . 13 1 . . Protection 4 | . . 10 . . Ballistic Gun 25 | . 28 21 26 28 Slashing Weapon 2 | . . 5 1 . Peak Build Rating 17 | 6 13 16 16 17 Average Rating 13 | 4 10 13 15 16 On Entrance 10 | . 6 13 16 16 Avg Prop Armor Cover (%) . | . . . . . Naked Turns . | . . . . . Heaviest Build 40 | 13 31 40 34 34 Greatest Support 40 | 40 40 40 40 40 Greatest Overweight (x) . | . . . . . Average Overweight (x) . | . . . . . Largest Inventory Capacity 15 | 8 15 15 15 15 Average Capacity 14 | 7 14 15 15 15 Most Carried 15 | 1 15 15 15 15 Average Carried 13 | . 9 14 14 14 Final Capacity 15 | 8 15 15 15 15 Final Carried 15 | 1 15 15 15 15 Class Distribution -------------------- 52% | Mutant 36% | Commander-Mutant 10% | Scavenger-Mutant Dominant Class ---------------- Mutant | -10/Materials Mutant | -10/Subcaves Commander-Mutant | -7/Recycling Commander-Mutant | -7/Scraptown Resources | -11 -10 -10 -7 -7 ----------- Run | Yrd Mat Sub Rec Scr Matter Collected 1017 | 175 311 497 34 . Remotely . | . . . . . Salvage Created 945 | . 398 507 40 . Parts 70 | . 32 37 1 . Haulers Intercepted 2 | . 2 . . . Recyclers Shooed . | . . . . . Parts Field Recycled . | . . . . . Retrieved Matter . | . . . . . Parts Self-Destructed 9 | . . 9 . . Prevented . | . . . . . Parts Restored . | . . . . . Kills | -11 -10 -10 -7 -7 ------- Run | Yrd Mat Sub Rec Scr Combat Hostiles Destroyed 28 | . 11 16 1 . Guns 27 | . 11 15 1 . AOE 1 | . . 1 . . Classes Destroyed 8 | . 5 2 1 . Worker 1 | . 1 . . . Hauler 2 | . 2 . . . Operator 1 | . 1 . . . Turret 2 | . . 2 . . Swarmer 9 | . 6 3 . . Grunt 5 | . 5 . . . Programmer 1 | . . . 1 . Subdweller 13 | . . 13 . . Best Kill Streak 3 | . 3 3 1 . Combat Bots Only 3 | . 3 3 1 . Max Kills in Single Turn 2 | . 2 2 1 . Gunslinging 1 | . . 1 . . Exploded 1 | . . 1 . . Melee . | . . . . . Uniques/NPCs Destroyed . | . . . . . Combat | -11 -10 -10 -7 -7 -------- Run | Yrd Mat Sub Rec Scr Hostile Shots Fired 149 | . 51 96 2 . Missed 52 | . 14 37 1 . Hits 97 | . 37 59 1 . Projectile 97 | . 37 59 1 . Critical Strikes 5 | . 3 2 . . Damage Taken 1361 | . 404 942 15 . Core 216 | . 54 162 . . Absorbed by Shields . | . . . . . Core Remaining (%) 100 | 100 . . . . Volleys Fired 90 | . 38 51 1 . Largest 2 | . 2 2 2 . Hottest 90 | . 46 90 60 . Shots Fired 175 | . 76 97 2 . Gun 173 | . 76 95 2 . Cannon . | . . . . . Launcher 2 | . . 2 . . Special . | . . . . . Kinetic 168 | . 76 90 2 . Thermal 5 | . . 5 . . Explosive 2 | . . 2 . . Electromagnetic . | . . . . . Robot Hit Streak 25 | . 25 17 3 . Robot Miss Streak 3 | . 3 3 . . Penetration Max . | . . . . . Secondary Targets 3 | . . 3 . . Max Gunslinging Chain 1 | . . 1 . . Shots Hit Robots 128 | . 58 69 1 . Core Hits 58 | . 24 33 1 . Critical Kills 1 | . . 1 . . Critical Parts Destroyed 1 | . 1 . . . Critical Strikes 3 | . 1 2 . . Destroy 3 | . 1 2 . . Melee Attacks 19 | . . 19 . . Impact . | . . . . . Slashing 19 | . . 19 . . Piercing . | . . . . . Sneak Attacks . | . . . . . Combat Hostiles . | . . . . . Follow-up Attacks . | . . . . . Damage Inflicted 2284 | . 684 1574 26 . Guns 2017 | . 684 1307 26 . Cannons . | . . . . . Explosions 267 | . . 267 . . Melee . | . . . . . Ramming . | . . . . . Kinetic 1931 | . 684 1221 26 . Thermal 86 | . . 86 . . Explosive 267 | . . 267 . . Electromagnetic . | . . . . . Impact . | . . . . . Slashing . | . . . . . Piercing . | . . . . . Highest Corruption . | . . . . . Average Corruption . | . . . . . Corruption Purged . | . . . . . Corruption Blocked . | . . . . . Overload Shots . | . . . . . Overflow Damage . | . . . . . Projectiles . | . . . . . Explosions . | . . . . . Melee . | . . . . . Knockbacks . | . . . . . Impact . | . . . . . Kinetic . | . . . . . Secondary . | . . . . . Self-Inflicted Damage . | . . . . . Shots . | . . . . . Rammed . | . . . . . Targets Rammed . | . . . . . Kicked . | . . . . . Crushed . | . . . . . Highest Temperature 512 | . 54 512 . . Average Temperature 73 | . 10 301 . . Received Heat Transfer 1013 | . 189 824 . . Effects 1 | . . 1 . . Damage (minor) 1 | . . 1 . . Siege Activations . | . . . . . Martial Activations . | . . . . . Shielding Activations . | . . . . . Robots Disrupted . | . . . . . Combat Hostiles . | . . . . . Robots Corrupted . | . . . . . Combat Hostiles . | . . . . . Parts Fried . | . . . . . Impact Corruptions . | . . . . . Robots Melted . | . . . . . Combat Hostiles . | . . . . . Parts Melted . | . . . . . Heat Transferred 100 | . . 100 . . Parts Sabotaged . | . . . . . Parts Stolen . | . . . . . Parts Stripped . | . . . . . Power Chain Reactions . | . . . . . Alert | -11 -10 -10 -7 -7 ------- Run | Yrd Mat Sub Rec Scr Maximum Alert Level . | . . . . . Low Security (%) 100 | 100 100 . 100 . Level 1 . | . . . . . Level 2 . | . . . . . Level 3 . | . . . . . Level 4 . | . . . . . Level 5 . | . . . . . High Security . | . . . . . Max Security . | . . . . . Peak Influence 108 | . 108 . 38 . Initial 18 | . . . 18 . Average 17 | . 36 . 3 . Influence Increases 587 | . 336 160 91 . Destroy 0b10 Robot/C 380 | . 220 100 60 . Destroy 0b10 Robot/NC 25 | . 20 . 5 . Destroy Leader 34 | . 34 . . . Allied During Kill 25 | . . . 25 . Successful Hack 15 | . 15 . . . Destroy Structure 3 | . 2 . 1 . Lose Combat Pursuer 105 | . 45 60 . . Influence Decreases 587 | . 294 164 129 . Entered New Map 41 | . . 21 20 . Time Decay 546 | . 294 143 109 . Squads Dispatched . | . . . . . Investigation . | . . . . . Extermination . | . . . . . Reinforcement . | . . . . . Assault . | . . . . . Garrison . | . . . . . Intercept . | . . . . . Searches Triggered . | . . . . . Construction Impeded . | . . . . . Haulers Reinforced . | . . . . . Active Scanning Responses . | . . . . . Cargo Convoy Interrupts . | . . . . . Stealth | -11 -10 -10 -7 -7 --------- Run | Yrd Mat Sub Rec Scr Distress Signals 3 | . 2 . 1 . Communications Jammed . | . . . . . Distress Signals . | . . . . . Times Spotted 41 | . 19 19 3 . Peak Tracking Total 5 | . 5 3 1 . Tactical Retreats 6 | . 3 3 . . Traps | -11 -10 -10 -7 -7 ------- Run | Yrd Mat Sub Rec Scr Traps Triggered . | . . . . . Indirectly . | . . . . . Trap Hack Attempts . | . . . . . Triggered . | . . . . . Disarmed . | . . . . . Reprogrammed . | . . . . . Reused . | . . . . . Traps Extracted . | . . . . . Installed . | . . . . . Triggered . | . . . . . Machines | -11 -10 -10 -7 -7 ---------- Run | Yrd Mat Sub Rec Scr Machines Disabled 1 | . . 1 . . Max in Single Turn 1 | . . 1 . . Machines Repaired . | . . . . . Machines Dismantled . | . . . . . Machines Sabotaged . | . . . . . Overloaded Fab Kills . | . . . . . Hacking | -11 -10 -10 -7 -7 --------- Run | Yrd Mat Sub Rec Scr Machines Accessed 16 | . 6 1 8 1 Terminals 6 | . 4 . 2 . Fabricators . | . . . . . Repair Stations . | . . . . . Recycling Units 8 | . 2 . 6 . Scanalyzers . | . . . . . Garrison Access . | . . . . . Total Hacks 42 | . 15 4 18 5 Successful 24 | . 7 4 8 5 Failed 17 | . 7 . 10 . Catastrophic . | . . . . . Database Lockouts 1 | . 1 . . . Manual 12 | . 11 . 1 . Terminals 14 | . 11 . 3 . Fabricators . | . . . . . Repair Stations . | . . . . . Recycling Units 19 | . 4 . 15 . Scanalyzers . | . . . . . Garrison Access . | . . . . . Terminal Hacks 12 | . 2 4 1 5 Record 10 | . . 4 1 5 Robot Analysis 2 | . 2 . . . Fabricator Hacks . | . . . . . Repair Station Hacks . | . . . . . Recycling Unit Hacks 9 | . 2 . 7 . Retrieve Components 9 | . 2 . 7 . Scanalyzer . | . . . . . Garrison Access Hacks . | . . . . . Unauthorized Hacks 3 | . 3 . . . Terminals 3 | . 3 . . . Botnet 3 | . 3 . . . Fabricators . | . . . . . Repair Stations . | . . . . . Recycling Units . | . . . . . Scanalyzers . | . . . . . Garrison Access . | . . . . . Data Cores Recovered 1 | . 1 . . . Used 1 | . 1 . . . Hacking Detections 6 | . 1 . 5 . Full Trace Events 1 | . . . 1 . Feedback Events . | . . . . . Feedback Blocked . | . . . . . Robot Schematics Acquired . | . . . . . Robots Built . | . . . . . Authchips . | . . . . . Time . | . . . . . Total Robot Build Rating . | . . . . . Part Schematics Acquired . | . . . . . Parts Built . | . . . . . Authchips . | . . . . . Time . | . . . . . Total Part Build Rating . | . . . . . Part Studies Acquired . | . . . . . Parts Repaired . | . . . . . Time . | . . . . . Parts Recycled . | . . . . . Recycled Matter . | . . . . . Retrieved Matter . | . . . . . Retrieved Components 11 | . 2 . 9 . Parts Scanalyzed . | . . . . . Part Schematics Acquired . | . . . . . Parts Damaged . | . . . . . Bothacking | -11 -10 -10 -7 -7 ------------ Run | Yrd Mat Sub Rec Scr Used RIF Installer . | . . . . . Robots Hacked . | . . . . . Non-combat . | . . . . . Combat . | . . . . . Robot Hacks Applied . | . . . . . Relay Couplers Released . | . . . . . Fabnet Peak Effective % . | . . . . . Robots Rewired 27 | . . . 27 . Allies Hacked . | . . . . . Hacks Repelled . | . . . . . Allies | -11 -10 -10 -7 -7 -------- Run | Yrd Mat Sub Rec Scr Total Allies 27 | . . . 27 . Largest Group 26 | . . . 26 24 Highest-Rated Group 573 | . . . 573 536 Highest-Rated Ally 40 | . . . 40 40 Total Orders . | . . . . . Ally Attacks 18 | . . . 18 . Total Damage 278 | . . . 278 . Kills 3 | . . . 3 . Allies Corrupted . | . . . . . Allies Melted . | . . . . . Intel | -11 -10 -10 -7 -7 ------- Run | Yrd Mat Sub Rec Scr Active Infowar (turns) . | . . . . . Robot Analysis Total 2 | . 2 . . . Derelict Logs Recovered 6 | . . 1 . 5 Drone Launches . | . . . . . Drone Recoveries . | . . . . . Exploration | -11 -10 -10 -7 -7 ------------- Run | Yrd Mat Sub Rec Scr Turns Passed 4568 | 56 925 1755 1195 637 Spaces Moved 2271 | 30 423 914 507 397 Core 1 | 1 . . . . Treads 2270 | 29 423 914 507 397 Legs . | . . . . . Wheels . | . . . . . Hover . | . . . . . Flight . | . . . . . Fastest Speed 50 | 50 160 160 160 160 Average Speed 159 | 156 160 160 160 160 Slowest Speed 160 | 160 160 160 160 160 Overloaded Moves . | . . . . . Propulsion Burnouts . | . . . . . Robots Hopped . | . . . . . Potential Cave-ins . | . . . . . Cave-ins Triggered . | . . . . . Exploration Rate (%) 53 | 3 69 59 94 43 Regions Visited 4 Branch Regions 3 Pre-discovered Areas 4 | . . 1 . 3 Known Exits Taken . | . . . . . Unknown Exits Taken 4 | 1 1 1 1 . Scrap Searched 12 | . . 11 . 1 Spaces Dug . | . . . . . Terrain Destroyed 8 | . . 8 . . Melee . | . . . . . Projectile . | . . . . . AOE 8 | . . 8 . . Terrain Rammed . | . . . . . Walls Destroyed . | . . . . . Machines Disabled . | . . . . . Actions | -11 -10 -10 -7 -7 --------- Run | Yrd Mat Sub Rec Scr Total 2996 | 36 602 1068 891 399 Wait 241 | . 115 29 97 . Move 2267 | 29 422 913 506 397 Hop . | . . . . . Pick Up 33 | 1 14 12 5 1 Fast Attach 11 | 6 3 2 . . Attach 3 | . . 3 . . Detach . | . . . . . Swap 28 | . 4 21 3 . Drop 30 | . 6 18 5 1 Fire 90 | . 38 51 1 . Melee 19 | . . 19 . . Ram . | . . . . . Kick . | . . . . . Crush . | . . . . . Escape Stasis . | . . . . . Rewire 274 | . . . 274 . Trap . | . . . . . Miscellaneous . | . . . . . Route ------- -11/Scrapyard -10/Materials (discovered 4 exits: [*Mat x2] / [*Min] / *Sub) -10/Subcaves -7/Recycling (discovered 2 exits: [*Fac] / *Scr) -7/Scraptown History --------- Turn | Location | Event 22 | -11/Scrapyard | Discovered new exit (range 16) 57 | -11/Scrapyard | Entered Materials 155 | -10/Materials | Discovered new exit (range 14) 308 | -10/Materials | Build established: Mutant 530 | -10/Materials | Discovered new exit (range 12) 726 | -10/Materials | Central database locked down 801 | -10/Materials | Discovered new exit (range 3) 970 | -10/Materials | Discovered new exit (range 5) 982 | -10/Materials | Entered Subcaves 1185 | -10/Subcaves | Shifting Twisted Machinery released Sub. Laser 1188 | -10/Subcaves | Shifting Twisted Machinery released Sub. Laser 1283 | -10/Subcaves | Visited Clippyterm 1287 | -10/Subcaves | Learned Factory trap positions 1586 | -10/Subcaves | A swath of the cavern ceiling suddenly collapsed 1982 | -10/Subcaves | Learned location of Zion (-6) 2121 | -10/Subcaves | Discovered new exit (range 13) 2235 | -10/Subcaves | A Subdweller sparked back to life 2235 | -10/Subcaves | A Subdweller sparked back to life 2235 | -10/Subcaves | A Subdweller sparked back to life 2244 | -10/Subcaves | Core integrity fell below 50% 2270 | -10/Subcaves | Found Prototype Leg 2422 | -10/Subcaves | Disturbed a concealed Subdweller 2565 | -10/Subcaves | Core integrity fell below 20% 2721 | -10/Subcaves | Build established: Scavenger-Mutant 2737 | -10/Subcaves | Entered Recycling 3180 | -7/Recycling | Discovered new exit (range 7) 3201 | -7/Recycling | Build established: Commander-Mutant 3851 | -7/Recycling | Scanned before Scraplab entrance 3881 | -7/Recycling | Entered Scraplab 3894 | -7/Recycling | Discovered new exit (range 2) 3932 | -7/Recycling | Entered Scraptown 3932 | -7/Scraptown | Accompanied by 24 allies 4044 | -7/Scraptown | Visited Comm Corps 4086 | -7/Scraptown | Scanned Subdweller tech in exchange for log data 4089 | -7/Scraptown | Learned Research stockpile data 4091 | -7/Scraptown | Learned Research security intel 4092 | -7/Scraptown | Learned location of Quarantine (-3) 4094 | -7/Scraptown | Learned Research non-interactive machine intel 4096 | -7/Scraptown | Learned location of Extension (-4) 4179 | -7/Scraptown | Visited UFD Registry 4179 | -7/Scraptown | Registered with UFD as "Autospreader" 4214 | -7/Scraptown | Visited Science Testing Area 4241 | -7/Scraptown | Visited Curators Association 4292 | -7/Scraptown | Visited Observation Area 4352 | -7/Scraptown | Visited Research Penetration Think Tank 4385 | -7/Scraptown | Visited Infowarlord's Domain 4392 | -7/Scraptown | Found Exp. Terrain Scanner 4417 | -7/Scraptown | Visited Abandonware Association 4436 | -7/Scraptown | Learned abandonware demo "TRNCOAT.EXE" 4436 | -7/Scraptown | Learned abandonware demo "KABOOM.EXE" 4464 | -7/Scraptown | Visited LU-1G1's Boring Crew 4512 | -7/Scraptown | Visited Chapter 10 4537 | -7/Scraptown | Visited Cartography Club 4569 | -7/Scraptown | Self-destructed Last Messages --------------- breakdown at some later crucial moment. DATA::[RESERVED] >>Record "MAIN.CPP" Hee hee hee. 04464_ LOCAL NARROWCAST: LU-1G1's Boring Crew. We dig so you don't have to. 04486_ LOCAL NARROWCAST: Closed for remodeling. 04512_ LOCAL NARROWCAST: Chapter 10. If you can't beat 'em, join 'em to beat 'em. 04528_ VT-AY8(p) scrutinizes some mainframe outputs. YX-HTV(j): Screw the Great Nut. 04537_ LOCAL NARROWCAST: Cartography Club. We map, therefore we are. Map ----- +----------------------------------------------------+ | #??????????###???????????????????#"""" #??# ?? | | #?????????? #?????????#?????????#"" " #??# "? | | #?????????" #?????????# ????????#"""" #??# "# | | #?????????" #????????## ######??#"" #??# "" | | #?????????" #????????? #???? #???? | | #?????????"""#??????????? ??????? ???????" | | #????????? ?????????????# #?????????# #????????? | | ########## ####???????##### ########### ########## | | #???????#"""" """"""""""" """""""""" | | #???????#" | | #???????#" | | #???????#" | | #???????#" | | #### #???#####" | | ?# #???#"""" """"""""""""""""""""" | | "## #???#"""" """"""""""""""""""""" | | "## #???#"""" a ""###### ########### | | "## #???#"""" i""#???? ?????????? | | ##### #???#"""" biih""#???? ?????????? | | ????# ###?#""""puahg ""#????" "?????????? | | ????# ""#"#"""" iagi ""#? "?? ??????????? | | ????# """"#"""" YrYbr""# " ???????????### | | ????# ""#######" ki Y"" "???????? | | ????# ###?????#" r "" "???????? | | ????# #########"g ""# " ????????### | | ????# @ ""# "" ?????????? | | ????# ""#?? "" ""????????? | | ????# ""#??? ????????? | | ????# ""#???? ?????????? | | #???# T ""###### ########### | | """"""""""""""""""""" | | """"""""""""""""""""" | | | | | | | | #""""#" | | ? #????#" | | ?? #????#"""""" """"""""""" """""""" | | ????####### ####????####### ########### ######## | | ??????????# ????????????? ???#" "# | | ??????????# ??????????? #?##"" ""##"" | | ??????????? ?????????# #??#$" "!##" | | ???????????????????????# #?##"" ""##" | | ???????????????????????# #?#" "#" | | ???????????????????????# #?##"" ""##"? | | ???????????????????????# #??#!" "&##?? | | ???????????????????????# #??#"" ""#??? | | ???????????????????????###########?#" """ "#" | | ???????????????????????????????????#### "[" ####" | | ??????????????????????????????????????#"###"#??#"" | +----------------------------------------------------+ Best States ------------- Heat Dissipation 39 Energy Generation 15 Energy Capacity 250 Matter Stores 300 Matter Capacity 300 Sight Range 16 Terrain Scan Density 10 Armor Coverage 225 Utility Shielding 33 Evasion (%) 40 Targeting Accuracy 5 Recoil Reduction 2 Item Schematics ----------------- None Robot Schematics ------------------ None Fabricated ------------ Nothing Repaired ---------- Nothing Studied --------- None Alien Tech Used ----------------- None Achievements -------------- None Challenges ------------ None Game ------ Seed TerrainSegregatorGravjet Manual? 0 Play Time 00:24:04 Cumulative 175.8 hours Start 2026.08.05 @ 20:09:41 End 2026.08.05 @ 20:31:57 Sessions 1 Manual Loads 0 Difficulty Rogue Special Mode None Game No. 184 Rogue 130 Adventurer 54 Explorer 0 Win Type - Total 8 Types 4/0/1/1/0/0/0/1/0/1 Lore% 66 Gallery% 58 Achievement% 55 Wizard Run 0 Options --------- Layout 1 ASCII 0 Keyboard 0 Movement Mouse Keybinds 1 Fullscreen 2 Font 32/Tamsyn Map View 50x35 Zoom Use 0% Tactical HUD 1 Map Filters NONE Filters NONE Steam 1 RUN: 31043d68-c38a-41a5-98de-314214744c00